[Event "2nd Bieszczady Chess-ch A 2022"]
[Site "Bystre"]
[Date "2022.07.22"]
[Round "7.8"]
[White "Hnatyshyn, Anastasiia"]
[Black "Kucharski, Bartlomiej"]
[Result "1-0"]
[ECO "B01"]
[WhiteElo "1931"]
[BlackElo "2003"]
[Annotator "TA"]
[PlyCount "135"]
[EventDate "2022.07.17"]
[EventCountry "POL"]
[SourceTitle "playchess.com"]
[Source "ChessBase"]
[SourceQuality "1"]
[TimeControl "5400+30"]

{[%evp 12,135,20,19,34,21,45,16,20,12,23,0,0,0,0,0,0,0,0,6,17,0,0,0,0,0,0,-16,0,0,0,-8,0,-8,0,0,0,0,0,0,0,0,0,-6,0,0,0,0,30,22,28,10,49,0,15,11,21,0,27,25,25,21,30,33,66,25,24,21,45,54,120,120,109,87,183,193,195,185,369,424,520,441,670,642,715,683,663,585,1176,1171,1081,1087,1029,1032,746,182,745,799,597,587,1236,1646,12840,12835,12842,12842,12843,12843,12845,12845,12845,12846,12847,12845,12846,12844,12845,12844,12845,12845,12847,12846,12847,12847,12850,12849]} 1. e4 d5 {[%emt 0:00:55]} 2. exd5 {[%emt 0:00:05]} Qxd5 {[%emt 0:00:00]} 3. Nc3 {[%emt 0:00:06]} Qa5 {[%emt 0:00:00]} 4. d4 {[%emt 0:00:00]} Nf6 {[%emt 0:00:20]} 5. Nf3 {[%emt 0:00:51][%cal Bg1f3,Bf3e5,Be5c4][%mdl 32]} Bf5 {[%emt 0:00:55]} 6. Bd3 {[%emt 0:00:06]} Bxd3 {[%emt 0:00:39]} 7. Qxd3 {[%emt 0:00:28][%cal Ob2b4]} c6 {B01: Scandinavian Defence.} 8. O-O e6 {[%emt 0:01:41]} 9. Bf4 {[%emt 0:01:06]} Be7 {[%emt 0:01:14] The position is equal.} 10. Ne5 {[%emt 0:01:54]} O-O {[%emt 0:03:32]} 11. Rad1 {[%emt 0:01:22] [#]} Nbd7 $146 {[%emt 0:05:17]} ({Predecessor:} 11... Nd5 12. Qg3 Nxf4 13. Qxf4 Qc7 14. Rfe1 Nd7 15. Ne4 Rad8 16. Qg3 Nxe5 17. dxe5 Rd5 {0-1 (45) Schulenburg,P (2290)-Forchert,N Germany 1994}) 12. Nc4 {[%emt 0:06:16]} Qa6 {[%emt 0:05:54]} 13. Bd6 {[%emt 0:14:49]} Rfe8 {[%emt 0:08:06][%cal Bf8e8,Be8e7,Be7c7][%mdl 32]} 14. Bxe7 {[%emt 0:00:40]} Rxe7 {[%emt 0:00:07]} 15. Rfe1 {[%emt 0:07:51]} Nd5 {[%emt 0:04:38]} 16. Nxd5 {[%emt 0:05:19]} cxd5 {[%emt 0:00:40]} 17. Ne3 {[%emt 0:00:13] [#] Threatens to win with Qxa6.} Qxd3 {[%emt 0:15:03]} 18. Rxd3 {[%emt 0:00:19][%cal Oe3d5]} Nf6 {[%emt 0:02:58]} 19. f3 {[%emt 0:06:39]} Rc7 {[%emt 0:04:41]} 20. a4 {[%emt 0:06:14]} Ne8 {[%emt 0:03:16]} 21. Rb3 {[%emt 0:07:21]} Nd6 {[%emt 0:00:56]} 22. c3 {[%emt 0:01:37]} Kf8 {[%emt 0:06:01]} 23. Kf1 {[%emt 0:00:39]} Rc6 {[%emt 0:01:50]} 24. Ke2 {[%emt 0:04:20]} Ra6 {[%emt 0:03:16]} 25. Rb4 {[%emt 0:00:19]} Ke7 {[%emt 0:02:09]} 26. Kd1 {[%emt 0:02:34]} Kd7 {[%emt 0:00:37]} 27. Ng4 {[%emt 0:00:13]} Rc8 {[%emt 0:04:21]} 28. Ne5+ {[%emt 0:01:46]} Ke7 {[%emt 0:01:04]} 29. Kc2 {[%emt 0:01:38]} Rb6 {[%emt 0:06:19]} 30. Rxb6 {[%emt 0:01:00]} axb6 $11 {[%emt 0:00:02][%mdl 4096] Endgame KRN-KRN} 31. Ra1 {[%emt 0:01:09]} Ra8 {[%emt 0:02:47]} 32. b3 {[%emt 0:02:27]} (32. Kb3 $14) 32... f6 {[%emt 0:05:02]} 33. Nd3 {[%emt 0:00:25]} Nf5 {[%emt 0:00:13]} 34. Re1 {[%emt 0:02:34] Hoping for g4.} Kd6 {[%emt 0:00:08]} 35. g4 {[%emt 0:02:10]} Nh4 {[%emt 0:01:15]} 36. f4 {[%emt 0:00:27]} Re8 {[%emt 0:01:43]} 37. Re3 {[%emt 0:01:06]} h6 {[%emt 0:03:07]} 38. c4 {[%emt 0:01:08][%cal Of4f5]} g5 {[%emt 0:02:35]} 39. Kc3 {[%emt 0:04:36]} Ng2 {[%emt 0:04:22][%csl LRe3,LRf4]} 40. Rf3 {[%emt 0:00:00] Black must now prevent fxg5.} gxf4 {[%emt 0:00:00]} (40... Nh4 $14 41. Rf2 Rf8) 41. Nxf4 $16 {[%emt 0:00:00]} Nxf4 {[%emt 0:00:00]} 42. Rxf4 {[%emt 0:00:00]} dxc4 {[%emt 0:00:00]} (42... Rf8 $16 {was worth a try.}) 43. Rxf6 $18 {[%emt 0:00:00]} cxb3 {[%emt 0:00:00]} 44. Rxh6 $14 {[%emt 0:00:00] KR-KR} ({Weaker is} 44. Kxb3 Rg8 $14) 44... b2 $2 {[%emt 0:00:00]} (44... Rg8) 45. Kxb2 $18 {[%emt 0:00:00]} Kd5 {[%emt 0:00:00]} 46. Kc3 {[%emt 0:00:14]} Rc8+ {[%emt 0:00:41]} (46... Ra8 $142 47. Rh5+ Kd6) 47. Kd3 {[%emt 0:00:37]} Ra8 {[%emt 0:00:34]} 48. Rh5+ {[%emt 0:01:12]} Kd6 {[%emt 0:00:08]} 49. Rb5 {[%emt 0:00:27]} Rxa4 {[%emt 0:01:07]} 50. Rxb6+ {[%emt 0:00:08]} Kd5 {[%emt 0:00:09]} 51. Rb5+ {[%emt 0:00:44]} Kc6 {[%emt 0:02:33]} 52. Re5 {[%emt 0:03:52]} Ra3+ {[%emt 0:00:23]} 53. Kc4 $2 {[%emt 0:02:02]} (53. Ke4 Kd6 54. h4) 53... Kd6 $2 {[%emt 0:00:35]} (53... Ra4+ 54. Kd3 Kd6) 54. h4 {[%emt 0:00:39][%cal Bh2h4,Bh4h5,Bh5h6][%mdl 32] White is clearly winning.} Rh3 {[%emt 0:01:30]} 55. h5 {[%emt 0:00:18]} Rg3 {[%emt 0:01:01]} 56. Rg5 {[%emt 0:01:23] [#] And now h6 would win.} Ke7 {[%emt 0:01:06]} 57. Rg7+ {[%emt 0:01:45]} Kf8 {[%emt 0:00:36]} 58. h6 {[%emt 0:00:13]} Rh3 {[%emt 0:00:18]} 59. g5 {[%emt 0:00:22]} b6 {[%emt 0:00:49]} 60. Rb7 {[%emt 0:02:30]} Kg8 {[%emt 0:00:45]} 61. Rxb6 {[%emt 0:00:54]} Rg3 {[%emt 0:00:22]} 62. Rb8+ {[%emt 0:00:05]} Kh7 {[%emt 0:00:11]} 63. Rb7+ {[%emt 0:00:04]} Kh8 {[%emt 0:00:13]} 64. Rg7 {[%emt 0:00:24]} e5 {[%emt 0:00:35]} 65. d5 {[%emt 0:00:23][%cal Bd4d5,Bd5d6,Bd6d7][%mdl 32]} e4 {[%emt 0:00:47]} 66. d6 {[%emt 0:00:14]} Rd3 {[%emt 0:00:44]} 67. d7 {[%emt 0:00:11]} Rd6 {[%emt 0:00:35]} 68. Re7 {[%emt 0:00:13] Weighted Error Value: White=0.26 (precise) /Black=0.24 (precise)} 1-0

[Event "2nd Bieszczady Chess-ch A 2022"]
[Site "Bystre"]
[Date "2022.07.23"]
[Round "8.1"]
[White "Tymrakiewicz, Rafal"]
[Black "Razin, Vadim"]
[Result "1/2-1/2"]
[ECO "D00"]
[WhiteElo "2205"]
[BlackElo "2428"]
[Annotator "TA"]
[PlyCount "30"]
[EventDate "2022.07.17"]
[EventCountry "POL"]
[SourceTitle "playchess.com"]
[Source "ChessBase"]
[SourceQuality "1"]
[TimeControl "5400+30"]

{[%evp 13,15,12,14,15]} 1. d4 {[%emt 0:00:07]} d5 {[%emt 0:00:33]} 2. Bf4 {[%emt 0:01:04]} Nf6 {[%emt 0:03:04]} 3. e3 {[%emt 0:01:02]} c6 {[%emt 0:00:48]} 4. c4 {[%emt 0:04:31]} e6 {[%emt 0:02:48]} 5. Nc3 {[%emt 0:01:17]} Bd6 {[%emt 0:00:17]} 6. Bxd6 {[%emt 0:01:44]} Qxd6 {[%emt 0:00:06]} 7. Nf3 $1 {[%emt 0:02:40] 7.Nf3 is better than 7.c5.} Nbd7 {[%emt 0:03:22]} 8. Be2 {[%emt 0:03:31] [#] A rather calm draw. D35: Queen's Gambit Declined: Exchange Variation.} {Predecessor:} O-O $146 9. O-O Re8 10. Rc1 a6 11. a3 b5 12. cxd5 cxd5 13. Bd3 Bb7 14. Nd2 e5 15. Nb3 e4 {0-1 (66) Demidov,M (2551)-Nakamura,H (2736) Chess.com INT 2021} 1/2-1/2

[Event "2nd Bieszczady Chess-ch A 2022"]
[Site "Bystre"]
[Date "2022.07.23"]
[Round "8.2"]
[White "Babiarz, Arkadiusz"]
[Black "Lewtak, Damian"]
[Result "1/2-1/2"]
[ECO "C41"]
[WhiteElo "2027"]
[BlackElo "2397"]
[Annotator "TA"]
[PlyCount "66"]
[EventDate "2022.07.17"]
[EventCountry "POL"]
[SourceTitle "playchess.com"]
[Source "ChessBase"]
[SourceQuality "1"]
[TimeControl "5400+30"]

{[%evp 18,66,35,25,30,20,28,12,66,42,40,36,43,27,41,55,50,8,8,8,16,0,0,-21,0,0,0,0,0,0,0,0,0,0,0,0,25,22,23,20,21,12,11,25,36,36,36,36,33,0,0]} 1. e4 {[%emt 0:00:01]} d6 {[%emt 0:04:05]} 2. d4 {[%emt 0:00:55]} Nf6 {[%emt 0:00:05]} 3. Nc3 {[%emt 0:00:08]} e5 {[%emt 0:00:12]} 4. Nf3 {[%emt 0:01:28]} Nbd7 {[%emt 0:03:27]} 5. Bc4 {[%emt 0:00:13]} Be7 {[%emt 0:00:04]} 6. O-O {[%emt 0:00:23]} O-O {[%emt 0:00:44]} 7. Re1 {[%emt 0:02:00]} c6 {[%emt 0:01:03]} 8. a4 {[%emt 0:00:07]} a5 {[%emt 0:00:39]} 9. h3 {[%emt 0:04:30]} exd4 {[%emt 0:00:29]} 10. Qxd4 {[%emt 0:00:39]} Nc5 {[%emt 0:01:37][%cal Oc5e4] C41: Philidor Defence.} 11. Be3 {[%emt 0:13:55]} Be6 {[%emt 0:04:45]} 12. Rad1 {[%emt 0:07:34]} Qc8 {[%emt 0:08:25]} (12... Bxc4 $11 13. Qxc4 Nfd7) 13. Bxe6 {[%emt 0:06:02] White is more active.} (13. Bg5 {feels hotter.} b6 14. Nd5 cxd5 15. exd5 h6 16. Bh4) 13... Nxe6 {[%emt 0:01:35]} 14. Qc4 {[%emt 0:00:18]} Re8 {[%emt 0:01:16] [#]} 15. Nd4 $146 {[%emt 0:05:02]} ({Predecessor:} 15. Qb3 Bf8 16. Re2 Nd7 17. Qc4 Nec5 18. Bf4 Nb6 19. Qd4 d5 20. exd5 Rxe2 21. Nxe2 Nxd5 22. Bd2 Qf5 23. Rc1 Ne4 24. Qd3 Bc5 25. Rf1 Nd6 26. Qxf5 {½-½ (26) Feletar,D (2376)-Novak,D (2365) Pula 1999}) 15... Nxe4 {[%emt 0:11:05]} 16. Nxe4 {[%emt 0:01:25] [#] aiming for Nxe6.} d5 {[%emt 0:00:05]} 17. Qd3 {[%emt 0:00:12] Threatens to win with Ng3.} (17. Qb3 $5 dxe4 18. Nxe6 Qxe6 19. Qxe6 (19. Qxb7 Reb8 $11) 19... fxe6 20. Rd4 $14) 17... dxe4 {[%emt 0:00:06]} 18. Qxe4 {[%emt 0:00:07]} Bf6 {[%emt 0:01:58] White must now prevent ...Nxd4.} 19. Qd3 {[%emt 0:06:44]} Rd8 {[%emt 0:02:32]} 20. Qc4 {[%emt 0:00:27]} Bxd4 {[%emt 0:00:43]} (20... b5 $5 21. axb5 Bxd4 22. Bxd4 cxb5 23. Qxc8 Raxc8 $11) 21. Bxd4 {[%emt 0:00:07]} Qd7 {[%emt 0:00:50]} 22. c3 {[%emt 0:03:39]} c5 {[%emt 0:03:04]} 23. Be3 {[%emt 0:00:02]} ({But not} 23. Bxc5 $2 Qc7 24. b4 (24. Rxd8+ $2 Rxd8 25. b4 b6 $19) 24... b6 $19) 23... Qxd1 {[%emt 0:00:49]} 24. Rxd1 {[%emt 0:00:02]} Rxd1+ {[%emt 0:00:07]} 25. Kh2 {[%emt 0:00:04]} b6 {[%emt 0:03:24]} 26. Qe4 {[%emt 0:10:20]} Rdd8 {[%emt 0:05:09]} 27. Qc6 {[%emt 0:01:40]} Rab8 {[%emt 0:00:33]} 28. f4 {[%emt 0:07:57]} g6 {[%emt 0:00:33]} 29. f5 {[%emt 0:01:21]} gxf5 {[%emt 0:00:22]} 30. Qf3 {[%emt 0:00:08]} Re8 {[%emt 0:04:27][%cal Of5f4]} 31. Bh6 {[%emt 0:04:19]} f4 $1 {[%emt 0:05:05] Prevents Qg3+.} 32. Qg4+ {[%emt 0:01:07]} Kh8 {[%emt 0:00:07]} 33. Bxf4 {[%emt 0:00:02]} Nxf4 {[%emt 0:00:12] Weighted Error Value: White=0.09 (flawless) /Black=0.10 (very precise)} 1/2-1/2

[Event "2nd Bieszczady Chess-ch A 2022"]
[Site "Bystre"]
[Date "2022.07.23"]
[Round "8.3"]
[White "Marszalek, Maciej"]
[Black "Wilk, Tomasz"]
[Result "1-0"]
[ECO "A62"]
[WhiteElo "2268"]
[BlackElo "1900"]
[Annotator "TA"]
[PlyCount "73"]
[EventDate "2022.07.17"]
[EventCountry "POL"]
[SourceTitle "playchess.com"]
[Source "ChessBase"]
[SourceQuality "1"]
[TimeControl "5400+30"]

{[%evp 18,73,20,14,21,18,15,20,52,44,52,46,43,39,209,204,222,210,326,321,383,380,358,337,306,292,277,280,708,172,170,177,475,434,479,481,446,419,491,507,29962,151,29963,29965,29969,29967,29967,29969,29969,29971,29972,29971,29972,29972,29968,29969,6279,6203]} 1. d4 {[%emt 0:00:03]} Nf6 {[%emt 0:00:07]} 2. c4 {[%emt 0:00:03]} e6 {[%emt 0:00:04]} 3. g3 {[%emt 0:00:04]} c5 {[%emt 0:01:53]} 4. d5 {[%emt 0:00:58]} exd5 {[%emt 0:00:14]} 5. cxd5 {[%emt 0:00:02]} d6 {[%emt 0:00:08]} 6. Nc3 {[%emt 0:01:06]} g6 {[%emt 0:00:54]} 7. Nf3 {[%emt 0:00:07]} Bg7 {[%emt 0:00:56]} 8. Bg2 {[%emt 0:00:01]} O-O {[%emt 0:00:15]} 9. O-O {[%emt 0:00:03]} Re8 {[%emt 0:00:04]} 10. Re1 {[%emt 0:00:09]} Na6 {[%emt 0:10:19] A62: Modern Benoni: Fianchetto Variation without early ...Nbd7.} 11. e4 {[%emt 0:00:36]} Bg4 {[%emt 0:00:27]} 12. Bf4 {[%emt 0:05:36]} Nc7 {[%emt 0:04:03] The position is equal.} 13. a4 {[%emt 0:02:11]} a6 {[%emt 0:03:14]} 14. h3 {[%emt 0:01:06]} Bxf3 {[%emt 0:00:07]} 15. Bxf3 {[#]} Nh5 $146 {[#]} (15... Rc8 $14) ({Predecessor:} 15... Bf8 16. a5 Nd7 17. Be2 Rb8 18. Qd2 Ne5 19. Be3 Bg7 20. f4 Nd7 21. e5 dxe5 {0-1 (59) Fidalgo,A (2265)-Janik,I (2454) Lisbon 2020}) 16. Bxh5 $18 {[%emt 0:01:06]} gxh5 {[%emt 0:05:29]} 17. Qxh5 {[%emt 0:05:39]} Qf6 {[%emt 0:01:16]} (17... Qe7 $142 18. Rad1 Rad8) 18. Qg4 b5 19. axb5 {[%emt 0:08:58]} Nxb5 {[%emt 0:01:22]} 20. Nxb5 axb5 {[%emt 0:00:02]} 21. Rxa8 {[%emt 0:02:55]} Rxa8 {[%emt 0:00:16]} 22. e5 {[%emt 0:02:39]} Qg6 {[%emt 0:03:26]} (22... dxe5 23. Bxe5 Qg6) 23. Qe2 $2 $40 {[%emt 0:01:30][%mdl 128] Black is in trouble.} (23. exd6 {Hoping for d7.} Bf6 24. Bh6) 23... dxe5 {[%emt 0:00:10]} 24. Bxe5 {[%cal Bf4e5,Be5c3,Bc3e1,Be1d2][%mdl 32]} Re8 $2 {[#]} (24... Qf5 {keeps fighting.} 25. Bxg7 Kxg7) 25. Qxb5 $1 {[%emt 0:00:37]} f6 {[%emt 0:00:33]} (25... Rd8 26. Qxc5) 26. Bc3 {[%emt 0:00:00]} Rxe1+ {[%emt 0:00:21]} 27. Bxe1 {[%emt 0:04:08][%mdl 4096] Endgame And now d6 would win. KQB-KQB} Qe4 {[%emt 0:00:14]} 28. Bd2 {[%emt 0:00:20]} Qxd5 {[%emt 0:00:05]} (28... Bf8 $18 29. Qd7 Qe7 30. Qg4+ Kf7) 29. Qe8+ {[%emt 0:00:30]} Bf8 {[%emt 0:02:21]} 30. Bh6 {[%emt 0:00:11][%csl Gh6][%cal Re8f8]} Qd6 {[%emt 0:00:04]} 31. Qxf8+ {[%emt 0:00:03]} Qxf8 32. Bxf8 {[%emt 0:00:12]} Kxf8 {[%emt 0:00:35] KP-KP} 33. Kf1 Ke7 {[%emt 0:00:03]} 34. Ke2 {[%emt 0:00:33]} Kd6 {[%emt 0:00:03]} 35. Kd3 {[%emt 0:00:07]} Kd5 {[%emt 0:00:04]} 36. b3 {[%emt 0:00:13]} f5 {[%emt 0:00:09]} 37. f3 {[%emt 0:00:16] Black did not feel at home in the position after the opening.  Weighted Error Value: White=0.24 (precise) /Black=0.78} 1-0

[Event "2nd Bieszczady Chess-ch A 2022"]
[Site "Bystre"]
[Date "2022.07.23"]
[Round "8.4"]
[White "Kyc, Jerzy"]
[Black "Kasperek, Ryszard"]
[Result "1-0"]
[ECO "B42"]
[WhiteElo "2203"]
[BlackElo "2058"]
[Annotator "TA"]
[PlyCount "57"]
[EventDate "2022.07.17"]
[EventCountry "POL"]
[SourceTitle "playchess.com"]
[Source "ChessBase"]
[SourceQuality "1"]
[TimeControl "5400+30"]

{[%evp 14,57,38,0,0,0,0,0,0,-50,-44,-51,-66,-63,6,0,88,77,349,336,352,345,355,342,518,519,623,350,493,482,591,586,581,547,575,578,548,530,996,943,1563,1064,1060,996,1482,1456]} 1. e4 {[%emt 0:00:00]} c5 {[%emt 0:04:19]} 2. Nf3 {[%emt 0:00:04]} e6 {[%emt 0:00:06]} 3. d4 {[%emt 0:00:11]} cxd4 {[%emt 0:00:05]} 4. Nxd4 {[%emt 0:00:02]} a6 {[%emt 0:00:31]} 5. Bd3 {[%emt 0:00:03]} Nc6 {[%emt 0:00:14]} 6. Nxc6 {[%emt 0:01:10]} dxc6 {[%emt 0:00:39]} 7. O-O {[%emt 0:00:09]} e5 {[%emt 0:00:03]} 8. f4 {[%emt 0:00:27]} Bc5+ {[%emt 0:03:36] B42: Sicilian: Kan Variation: 5 Bd3.} 9. Kh1 {[%emt 0:00:01]} Nf6 {[%emt 0:00:07]} 10. Qe1 {[%emt 0:01:10]} Ng4 {[%emt 0:09:57] The position is equal.} 11. Nc3 {[%emt 0:07:04]} (11. Be2 $11) 11... Qd4 $15 {[%emt 0:11:02] aiming for ...Nf2+.} 12. Nd1 {[%emt 0:01:23] Inhibits Nf2+.} exf4 {[%emt 0:00:38]} 13. Bxf4 {[%emt 0:00:24] [#]} f6 $146 {[%emt 0:08:28]} (13... Be6 $15) ({Predecessor:} 13... Be6 14. Qg3 h5 15. h3 h4 16. Qe1 Ne5 17. Be3 Qd6 18. Bxc5 Qxc5 19. Ne3 O-O-O {0-1 (74) Petrovskiy,V (2330)-Pham,L (2369) Chess.com INT 2022}) 14. h3 {[%emt 0:16:48]} h5 {[%emt 0:12:20]} (14... Ne5 $11 {keeps the balance.}) 15. e5 $1 $16 {[%emt 0:03:41]} fxe5 {[%emt 0:08:39][%mdl 8192] Loses the game.} 16. Bg5 $18 {[%emt 0:12:16][%cal Bf4g5,Bg5e7,Be7d6,Bd6c5][%mdl 32]} Be6 {[%emt 0:04:15][%cal Oe8d7]} 17. Nc3 {[%emt 0:07:29]} Kd7 {[%emt 0:10:02]} (17... Nf2+ $2 {[#]} 18. Rxf2 $1 {[%mdl 512]} Bf7 19. Rxf7 $1 {[%mdl 512]} Kxf7 20. Qe2 $18) 18. Ne4 {[%emt 0:07:36] Inhibits Nf2+. The board is on fire.} Bb6 {[%emt 0:12:13] [#]} (18... Raf8 {was worth a try.} 19. Nxc5+ Qxc5) 19. c3 $1 {[%emt 0:05:21]} Qa4 {[%emt 0:00:05]} (19... Qd5 20. Bc2) 20. Rd1 {[%emt 0:13:03]} ({Less strong is} 20. hxg4 hxg4+ 21. Bh4 Rad8 $16) 20... Kc7 {[%emt 0:00:04]} (20... Kc8 $142 21. Qh4 Kc7) 21. Be7 {[%emt 0:02:43] White is clearly winning.} Qxa2 {[%emt 0:03:29]} 22. Bd6+ {[%emt 0:01:19]} Kc8 {[%emt 0:00:03]} 23. Bc5 {[%emt 0:02:30] Inhibits Ne3.} Bc7 {[%emt 0:02:07]} 24. hxg4 {[%emt 0:00:57]} hxg4+ {[%emt 0:00:21]} 25. Kg1 {[%emt 0:00:02] Active counter play!} Qxb2 {[%emt 0:05:31]} 26. Qe3 {[%emt 0:03:51]} a5 {[%emt 0:01:22]} 27. Rd2 {[%emt 0:03:28]} Qb3 {[%emt 0:01:01]} 28. Rb1 {[%emt 0:00:22]} Qd5 {[%emt 0:00:51]} 29. Be2 {[%emt 0:00:18][%mdl 64] Discovered Attack.  Weighted Error Value: White=0.22 (precise) /Black=0.71} 1-0

[Event "2nd Bieszczady Chess-ch A 2022"]
[Site "Bystre"]
[Date "2022.07.23"]
[Round "8.5"]
[White "Karvatskyi, Oleksii"]
[Black "Dzwierzynski, Bartosz"]
[Result "1-0"]
[ECO "A45"]
[WhiteElo "1804"]
[BlackElo "2129"]
[Annotator "TA"]
[PlyCount "79"]
[EventDate "2022.07.17"]
[EventCountry "POL"]
[SourceTitle "playchess.com"]
[Source "ChessBase"]
[SourceQuality "1"]
[TimeControl "5400+30"]

{[%evp 9,79,-7,-7,-8,-11,-6,-6,-10,-11,-16,-14,0,0,0,43,0,0,-79,12,14,192,197,192,187,196,193,211,193,205,134,446,425,500,514,408,403,616,621,1239,893,922,918,979,910,1893,768,29986,29987,29987,29988,29988,29988,29988,29986,29986,29987,29987,29988,29988,29989,29989,29990,29990,29991,29993,29994,29994,29995,29995,29996,29996,29997]} 1. d4 {[%emt 0:00:02]} Nf6 {[%emt 0:00:12]} 2. Nc3 {[%emt 0:00:04]} d5 {[%emt 0:00:28]} 3. Bf4 {[%emt 0:00:05]} Bf5 {[%emt 0:06:08]} 4. f3 {[%emt 0:01:17]} e6 {[%emt 0:00:58]} 5. g4 {[%emt 0:00:04]} Bg6 {[%emt 0:00:07]} 6. h4 {[%emt 0:00:01] Hoping for h5. D00: 1 d4 d5: Unusual lines.} h6 {[%emt 0:01:46]} 7. e3 {[%emt 0:00:12]} a6 {[%emt 0:02:40]} 8. Bd3 {[%emt 0:00:31] The position is equal.} Bxd3 {[%emt 0:00:55]} 9. Qxd3 {[%emt 0:00:02]} c5 {[%emt 0:02:31]} 10. Nge2 {[%emt 0:01:32]} Nc6 {[%emt 0:00:45]} 11. O-O-O {[%emt 0:00:51]} Bd6 {[%emt 0:07:22]} (11... c4 $5 12. Qd2 b5 $11) 12. g5 {[%emt 0:01:50]} Nh5 {[%emt 0:00:11]} 13. g6 {[%emt 0:04:12] [#]} (13. Bxd6 $11 {keeps the balance.} c4 14. Qd2 $1 Qxd6 15. e4) 13... f6 $146 {[%emt 0:02:53]} ({Black should try} 13... Nxf4 $17 14. exf4 cxd4 15. gxf7+ Kxf7 16. Nxd4 Bxf4+ 17. Kb1 Qf6) ({Predecessor:} 13... f5 14. Bxd6 Qxd6 15. e4 fxe4 16. fxe4 Nf4 17. Qe3 Nxe2+ 18. Nxe2 cxd4 19. Nxd4 O-O-O 20. Nxc6 Qxc6 21. exd5 Rxd5 22. Rxd5 exd5 {1-0 (71) Artemenko,O (2246)-Karabalis,H (2252) Chess.com INT 2022}) 14. dxc5 {[%emt 0:03:18]} (14. Bxd6 {seems wilder.} c4 15. Qd2 Qxd6 16. e4) 14... Nxf4 {[%emt 0:11:25]} (14... Bxc5 $11 {and Black stays safe.} 15. Kb1 Qe7) 15. Nxf4 $18 {[%emt 0:00:56]} Bxf4 {[%emt 0:00:09]} 16. exf4 {[%emt 0:00:05][%cal Be3f4,Bf4f5,Bf5e6,Be6e7][%mdl 32] aiming for Rhe1.} O-O {[%emt 0:05:05]} 17. Rhe1 {[%emt 0:03:25]} Re8 {[%emt 0:12:41] [#]} 18. f5 $1 {[%emt 0:03:09]} Ne5 {[%emt 0:00:26]} 19. Qe2 {[%emt 0:00:30] Black must now prevent fxe6.} Rc8 $2 {[%emt 0:09:02][%mdl 8192] Loses the game.} (19... exf5 $16 20. Nxd5 (20. Rxd5 Qa5 $14) 20... Nxg6) 20. f4 {[%emt 0:01:42]} Nc4 {[%emt 0:01:06]} 21. fxe6 {[%emt 0:01:01]} Qa5 {[%emt 0:02:49] And now ...Qb4 would win.} 22. a3 {[%emt 0:10:13] Inhibits Qb4.} Rxc5 {[%emt 0:04:39]} (22... Qxc5 $142 23. Nxd5 Kh8) 23. e7 {[%emt 0:02:43]} Rc6 {[%emt 0:05:20][%cal Oc4b2] Against Qe6+} 24. Nxd5 {[%emt 0:01:15]} Nxa3 {[%emt 0:06:54]} 25. bxa3 {[%emt 0:01:41]} Qxa3+ {[%emt 0:00:06]} 26. Kb1 {[%emt 0:00:39]} Rc5 {[%emt 0:03:16]} 27. Rd3 {[%emt 0:01:56]} Qa4 {[%emt 0:05:50] [#]} 28. Nxf6+ $1 {[%emt 0:01:42] White mates.} Kh8 {[%emt 0:00:23]} 29. Nxe8 {[%emt 0:01:17]} Rb5+ {[%emt 0:00:57]} 30. Rb3 {[%emt 0:00:38]} Ra5 {[%emt 0:00:10] [#]} 31. Qe5 $3 {[%emt 0:03:57][%csl Ge8][%cal Re5g7]} Qa2+ {[%emt 0:00:22]} 32. Kc1 {[%emt 0:00:02][%csl Ge8][%cal Re5g7]} Rxe5 {[%emt 0:00:05]} 33. Rxe5 {[%emt 0:00:06]} Qa1+ {[%emt 0:00:15]} 34. Kd2 {[%emt 0:00:08]} Qd4+ {[%emt 0:00:09]} 35. Rd3 {[%emt 0:00:17]} Qxf4+ {[%emt 0:00:13]} 36. Ree3 {[%emt 0:00:05]} Qb4+ {[%emt 0:04:33]} 37. Kc1 {[%emt 0:00:10]} Qa5 {[%emt 0:00:12] [#]} 38. Nc7 $1 {[%emt 0:00:27][%cal Re7e8]} Qa1+ {[%emt 0:00:08]} 39. Kd2 {[%emt 0:00:00][%cal Re7e8]} Qa5+ {[%emt 0:00:08]} 40. Rc3 {[%emt 0:00:00] Weighted Error Value: White=0.17 (very precise) /Black=0.62} 1-0